fUSD/lending_fUSD_20250407
["ID","MTS","AMOUNT","RATE_DAILY","PERIOD"]
[357310452,1744004300129,-669.44,0.00052054,120]
[357310453,1744004300188,-2707.98,0.00052054,120]
[357310454,1744004300247,-500.0,0.00052054,120]
[357310455,1744004300306,-500.0,0.00052054,120]
[357310456,1744004300363,-500.0,0.00052054,120]
[357310457,1744004300420,-500.0,0.00052054,120]
[357310458,1744004300477,-500.0,0.00052054,120]
[357310459,1744004300532,-524.26,0.00052054,120]
[357310460,1744004300589,-2353.85,0.00052054,120]
[357310461,1744004300648,-987.22,0.00052054,120]
[357310462,1744004300715,-267.42875713,0.00052054,120]
[357310463,1744004300779,-174.86232536,0.00052054,120]
[357310464,1744004300843,-500.0,0.00052054,120]
[357310465,1744004300903,-500.0,0.00052054,120]
[357310466,1744004300968,-500.0,0.00052054,120]
[357310467,1744004301034,-500.0,0.00052054,120]
[357310468,1744004301099,-500.0,0.00052054,120]
[357310469,1744004301159,-500.0,0.00052054,120]
[357310470,1744004301222,-551.53,0.00052054,120]
[357310471,1744004301282,-678.92,0.00052054,120]
[357310472,1744004301342,-500.0,0.00052054,120]
[357310473,1744004301401,-761.56,0.00052054,120]
[357310474,1744004301460,-526.71,0.00052054,30]
[357310475,1744004301520,-500.0,0.00052054,120]
[357310476,1744004301575,-515.69,0.00052054,120]
[357310477,1744004301630,-607.42,0.00052054,120]
[357310478,1744004301695,-1141.72,0.00052054,120]
[357310479,1744004301752,-563.45856857,0.00052054,120]
[357310480,1744004301811,-500.0,0.00052054,120]
[357310481,1744004301866,-836.39,0.00052054,120]
[357310482,1744004301920,-500.0,0.00052054,120]
[357310483,1744004301973,-500.0,0.00052054,120]
[357310484,1744004302026,-500.0,0.00052054,120]
[357310485,1744004302081,-500.0,0.00052054,120]
[357310486,1744004302135,-1188.09,0.00052054,120]
[357310487,1744004302189,-500.0,0.00052054,120]
[357310488,1744004302246,-500.0,0.00052054,120]
[357310489,1744004302302,-500.0,0.00052054,120]
[357310490,1744004302356,-500.0,0.00052054,120]
[357310491,1744004302414,-869.5,0.00052054,120]
[357310492,1744004302620,-500.0,0.00052054,120]
[357310493,1744004302682,-500.0,0.00052054,120]
[357310494,1744004302743,-500.0,0.00052054,120]
[357310495,1744004302799,-489.94648731,0.00052054,120]
[357310496,1744004302855,-319.18,0.00052054,120]
[357310497,1744004302909,-891.76,0.00052054,120]
[357310498,1744004302964,-543.86,0.00052054,120]
[357310499,1744004303018,-1131.81,0.00052054,120]
[357310500,1744004303076,-642.12,0.00052054,120]
[357310501,1744004303135,-801.0,0.00052054,120]
[357310502,1744004303191,-500.0,0.00052054,120]
[357310503,1744004303245,-603.59,0.00052054,120]
[357310504,1744004303300,-1604.32,0.00052054,120]
[357310505,1744004303360,-500.0,0.00052054,120]
[357310506,1744004303415,-565.78,0.00052054,120]
[357310507,1744004303473,-500.0,0.00052054,120]
[357310508,1744004303531,-695.39,0.00052054,120]
[357310509,1744004303594,-516.92,0.00052054,120]
[357310510,1744004303658,-2327.34,0.00052054,120]
[357310511,1744004303720,-420.36483714,0.00052054,120]
[357310512,1744004303779,-3568.12,0.00052054,120]
[357310513,1744004303835,-500.0,0.00052054,120]
[357310514,1744004303892,-500.0,0.00052054,120]
[357310515,1744004303950,-500.0,0.00052054,120]
[357310516,1744004304007,-500.0,0.00052054,120]
[357310517,1744004304065,-500.0,0.00052054,120]
[357310518,1744004304123,-500.0,0.00052054,120]
[357310519,1744004304182,-536.42,0.00052054,120]
[357310520,1744004304242,-500.0,0.00052054,120]
[357310521,1744004304300,-500.0,0.00052054,120]
[357310522,1744004304363,-500.0,0.00052054,120]
[357310523,1744004304427,-554.34549001,0.00052054,120]
[357310524,1744004304489,-500.0,0.00052054,120]
[357310525,1744004304558,-500.0,0.00052054,120]
[357310526,1744004304619,-500.0,0.00052054,120]
[357310527,1744004304680,-334.88991272,0.00052054,120]
[357310528,1744004304742,-500.0,0.00052054,120]
[357310529,1744004304801,-610.95984963,0.00052054,120]
[357310530,1744004304856,-500.0,0.00052054,120]
[357310531,1744004304912,-500.0,0.00052054,120]
[357310532,1744004304967,-1483.35,0.00052054,120]
[357310533,1744004305024,-500.0,0.00052054,120]
[357310534,1744004305080,-902.71,0.00052054,120]
[357310535,1744004305138,-500.0,0.00052054,120]
[357310536,1744004305196,-247.3644279,0.00052054,120]
[357310537,1744004305256,-4838.43,0.00052054,120]
[357310538,1744004305319,-521.52,0.00052054,120]
[357310539,1744004305382,-500.0,0.00052054,120]
[357310540,1744004305442,-500.0,0.00052054,120]
[357310541,1744004305499,-500.0,0.00052054,120]
[357310542,1744004305557,-270.41884946,0.00052054,120]
[357310543,1744004305614,-500.0,0.00052054,120]
[357310544,1744004305671,-500.0,0.00052054,120]
[357310545,1744004305740,-500.0,0.00052054,120]
[357310546,1744004305806,-1085.1,0.00052054,120]
[357310547,1744004305867,-343.77687437,0.00052054,120]
[357310548,1744004305934,-500.0,0.00052054,120]
[357310549,1744004305999,-757.6,0.00052054,120]
[357310550,1744004306062,-500.0,0.00052054,120]
[357310551,1744004306125,-500.0,0.00052054,120]
[357310552,1744004306189,-500.0,0.00052054,120]
[357310553,1744004306251,-500.0,0.00052054,120]
[357310554,1744004306315,-528.41,0.00052054,120]
[357310555,1744004306376,-23119.87,0.00052054,120]
[357310556,1744004306437,-500.0,0.00052054,120]
[357310557,1744004306496,-466.75405906,0.00052054,120]
[357310558,1744004306553,-576.76,0.00052054,120]
[357310559,1744004306609,-500.0,0.00052054,120]
[357310560,1744004306665,-436.66,0.00052054,120]
[357310561,1744004306725,-500.0,0.00052054,120]
[357310562,1744004306782,-500.0,0.00052054,120]
[357310563,1744004306840,-500.0,0.00052054,120]
[357310564,1744004306899,-500.0,0.00052054,120]
[357310565,1744004306956,-500.0,0.00052054,120]
[357310566,1744004307016,-598.2,0.00052054,120]
[357310567,1744004307081,-920.78,0.00052054,120]
[357310568,1744004307147,-500.0,0.00052054,120]
[357310569,1744004307216,-1760.18,0.00052054,120]
[357310570,1744004307286,-500.0,0.00052054,120]
[357310571,1744004307349,-500.0,0.00052054,120]
[357310572,1744004307416,-573.0,0.00052055,120]
[357310573,1744004307484,-152.12,0.00052055,120]
[357310574,1744004307548,-1066.0,0.0005225,30]
[357310575,1744004307612,-1607.14,0.00052328,120]
[357310576,1744004307678,-500.0,0.00052328,120]
[357310577,1744004307745,-529.56,0.00052328,120]
[357310578,1744004307810,-500.0,0.00052328,120]
[357310579,1744004307875,-1873.68,0.00052328,120]
[357310580,1744004307939,-500.0,0.00052328,120]
[357310581,1744004308000,-500.0,0.00052328,120]
[357310582,1744004308063,-500.0,0.00052328,120]
[357310583,1744004308133,-500.0,0.00052328,120]
[357310584,1744004308199,-500.0,0.00052328,120]
[357310585,1744004308266,-500.0,0.00052328,120]
[357310586,1744004308328,-500.0,0.00052328,120]
[357310587,1744004308547,-500.0,0.00052328,120]
[357310588,1744004308609,-1225.53,0.00052328,120]
[357310589,1744004308670,-500.0,0.00052328,120]
[357310590,1744004308734,-386.72343913,0.00052328,120]
[357310591,1744004308793,-500.0,0.00052328,120]
[357310592,1744004308849,-500.0,0.00052328,120]
[357310593,1744004308905,-500.0,0.00052328,120]
[357310594,1744004308960,-760.28,0.00052328,120]
[357310595,1744004309017,-500.0,0.00052328,120]
[357310596,1744004309075,-500.0,0.00052328,120]
[357310597,1744004309134,-500.0,0.00052328,120]
[357310598,1744004309193,-500.0,0.00052328,120]
[357310599,1744004309254,-835.94,0.00052328,120]
[357310600,1744004309317,-500.0,0.00052328,120]
[357310601,1744004309378,-500.0,0.00052328,120]
[357310602,1744004309440,-596.65,0.00052328,120]
[357310603,1744004309498,-800.51,0.00052328,120]
[357310604,1744004309553,-646.46,0.00052328,120]
[357310605,1744004309610,-500.0,0.00052328,120]
[357310606,1744004309670,-797.82,0.00052328,120]
[357310607,1744004309732,-698.98,0.00052328,120]
[357310608,1744004309792,-669.44,0.00052328,120]
[357310609,1744004309848,-2707.98,0.00052328,120]
[357310610,1744004309905,-500.0,0.00052328,120]
[357310611,1744004309960,-500.0,0.00052328,120]
[357310612,1744004310017,-500.0,0.00052328,120]
[357310613,1744004310076,-500.0,0.00052328,120]
[357310614,1744004310136,-500.0,0.00052328,120]
[357310615,1744004310197,-524.26,0.00052328,120]
[357310616,1744004310258,-2353.85,0.00052328,120]
[357310617,1744004310318,-987.22,0.00052328,120]
[357310618,1744004310381,-500.0,0.00052328,120]
[357310619,1744004310439,-500.0,0.00052328,120]
[357310620,1744004310496,-500.0,0.00052328,120]
[357310621,1744004310552,-500.0,0.00052328,120]
[357310622,1744004310607,-500.0,0.00052328,120]
[357310623,1744004310663,-500.0,0.00052328,120]
[357310624,1744004310724,-551.53,0.00052328,120]
[357310625,1744004310779,-678.92,0.00052328,120]
[357310626,1744004310832,-500.0,0.00052328,120]
[357310627,1744004310887,-761.56,0.00052328,120]
[357310628,1744004310941,-526.71,0.00052328,30]
[357310629,1744004310992,-500.0,0.00052328,120]
[357310630,1744004311048,-515.69,0.00052328,120]
[357310631,1744004311104,-607.42,0.00052328,120]
[357310632,1744004311163,-1141.72,0.00052328,120]
[357310633,1744004311222,-500.0,0.00052328,120]
[357310634,1744004311280,-836.39,0.00052328,120]
[357310635,1744004311336,-500.0,0.00052328,120]
[357310636,1744004311393,-500.0,0.00052328,120]
[357310637,1744004311451,-500.0,0.00052328,120]
[357310638,1744004311508,-1188.09,0.00052328,120]
[357310639,1744004311569,-500.0,0.00052328,120]
[357310640,1744004311631,-500.0,0.00052328,120]
[357310641,1744004311698,-500.0,0.00052328,120]
[357310642,1744004311759,-357.2095816,0.00052328,120]
[357310643,1744004311823,-869.5,0.00052328,120]
[357310644,1744004311884,-500.0,0.00052328,120]
[357310645,1744004311947,-500.0,0.00052328,120]
[357310646,1744004312006,-500.0,0.00052328,120]
[357310647,1744004312066,-319.18,0.00052328,120]
[357310648,1744004312124,-891.76,0.00052328,120]
[357310649,1744004312182,-543.86,0.00052328,120]
[357310650,1744004312244,-1131.81,0.00052328,120]
[357310651,1744004312301,-642.12,0.00052328,120]
[357310652,1744004312360,-801.0,0.00052328,120]
[357310653,1744004312420,-500.0,0.00052328,120]
[357310654,1744004312479,-603.59,0.00052328,120]
[357310655,1744004312537,-1604.32,0.00052328,120]
[357310656,1744004312596,-590.72312112,0.00052328,120]
[357310657,1744004312655,-565.78,0.00052328,120]
[357310658,1744004312714,-301.8415391,0.00052328,120]
[357310659,1744004312779,-695.39,0.00052328,120]
[357310660,1744004312838,-516.92,0.00052328,120]
[357310661,1744004312895,-2327.34,0.00052328,120]
[357310662,1744004312953,-3568.12,0.00052328,120]
[357310663,1744004313010,-500.0,0.00052328,120]
[357310664,1744004313073,-500.0,0.00052328,120]
[357310665,1744004313137,-500.0,0.00052328,120]
[357310666,1744004313205,-500.0,0.00052328,120]
[357310667,1744004313274,-500.0,0.00052328,120]
[357310668,1744004313338,-500.0,0.00052328,120]
[357310669,1744004313402,-536.42,0.00052328,120]
[357310670,1744004313466,-500.0,0.00052328,120]
[357310671,1744004313532,-500.0,0.00052328,120]
[357310672,1744004313597,-500.0,0.00052328,120]
[357310673,1744004313662,-500.0,0.00052328,120]
[357310674,1744004313725,-500.0,0.00052328,120]
[357310675,1744004313793,-500.0,0.00052328,120]
[357310676,1744004313855,-500.0,0.00052328,120]
[357310677,1744004313916,-500.0,0.00052328,120]
[357310678,1744004313979,-357.77857046,0.00052328,120]
[357310679,1744004314042,-1483.35,0.00052328,120]
[357310680,1744004314106,-500.0,0.00052328,120]
[357310681,1744004314343,-902.71,0.00052328,120]
[357310682,1744004314419,-500.0,0.00052328,120]
[357310683,1744004314483,-4838.43,0.00052328,120]
[357310684,1744004314548,-521.52,0.00052328,120]
[357310685,1744004314609,-500.0,0.00052328,120]
[357310686,1744004314673,-500.0,0.00052328,120]
[357310687,1744004314735,-228.16489019,0.00052328,120]
[357310688,1744004314795,-500.0,0.00052328,120]
[357310689,1744004314852,-500.0,0.00052328,120]
[357310690,1744004314910,-500.0,0.00052328,120]
[357310691,1744004314967,-1085.1,0.00052328,120]
[357310692,1744004315028,-500.0,0.00052328,120]
[357310693,1744004315090,-757.6,0.00052328,120]
[357310694,1744004315159,-500.0,0.00052328,120]
[357310695,1744004315221,-500.0,0.00052328,120]
[357310696,1744004315287,-500.0,0.00052328,120]
[357310697,1744004315353,-500.0,0.00052328,120]
[357310698,1744004315415,-528.41,0.00052328,120]
[357310699,1744004315478,-23119.87,0.00052328,120]
[357310700,1744004315535,-500.0,0.00052328,120]
[357310701,1744004315593,-576.76,0.00052328,120]
[357310702,1744004315652,-462.36005961,0.00052328,120]
[357310703,1744004315717,-557.89465463,0.00052328,120]
[357310704,1744004315780,-307.72895804,0.00052328,120]
[357310705,1744004315842,-500.0,0.00052328,120]
[357310706,1744004315901,-500.0,0.00052328,120]
[357310707,1744004315965,-500.0,0.00052328,120]
[357310708,1744004316029,-598.2,0.00052328,120]
[357310709,1744004316090,-920.78,0.00052328,120]
[357310710,1744004316153,-500.0,0.00052328,120]
[357310711,1744004316219,-1760.18,0.00052328,120]
[357310712,1744004316285,-396.72629289,0.00052328,120]
[357310713,1744004316350,-500.0,0.00052328,120]
[357310714,1744004316410,-300.0,0.00052408,120]
[357310715,1744004316468,-11100.0,0.0005255,60]
[357310716,1744004316524,-1607.14,0.00052602,120]
[357310717,1744004316579,-500.0,0.00052602,120]
[357310718,1744004316633,-529.56,0.00052602,120]
[357310719,1744004316692,-500.0,0.00052602,120]
[357310720,1744004316750,-1873.68,0.00052602,120]
[357310721,1744004316807,-500.0,0.00052602,120]
[357310722,1744004316862,-500.0,0.00052602,120]
[357310723,1744004316918,-500.0,0.00052602,120]
[357310724,1744004316978,-500.0,0.00052602,120]
[357310725,1744004317035,-500.0,0.00052602,120]
[357310726,1744004317094,-500.0,0.00052602,120]
[357310727,1744004317153,-500.0,0.00052602,120]
[357310728,1744004317211,-351.04987484,0.00052602,120]
[357310729,1744004317272,-1225.53,0.00052602,120]
[357310730,1744004317334,-500.0,0.00052602,120]
[357310731,1744004317395,-495.65104053,0.00052602,120]
[357310732,1744004317453,-500.0,0.00052602,120]
[357310733,1744004317512,-500.0,0.00052602,120]
[357310734,1744004317570,-760.28,0.00052602,120]
[357310735,1744004317627,-500.0,0.00052602,120]
[357310736,1744004317688,-500.0,0.00052602,120]
[357310737,1744004317744,-309.85300184,0.00052602,120]
[357310738,1744004317807,-500.0,0.00052602,120]
[357310739,1744004317868,-835.94,0.00052602,120]
[357310740,1744004317930,-500.0,0.00052602,120]
[357310741,1744004317990,-500.0,0.00052602,120]
[357310742,1744004318051,-596.65,0.00052602,120]
[357310743,1744004318115,-800.51,0.00052602,120]
[357310744,1744004318177,-646.46,0.00052602,120]
[357310745,1744004318240,-500.0,0.00052602,120]
[357310746,1744004318302,-797.82,0.00052602,120]
[357310747,1744004318364,-698.98,0.00052602,120]
[357310748,1744004318427,-669.44,0.00052602,120]
[357310749,1744004318487,-2707.98,0.00052602,120]
[357310750,1744004318549,-500.0,0.00052602,120]
[357310751,1744004318608,-500.0,0.00052602,120]
[357310752,1744004318669,-500.0,0.00052602,120]
[357310753,1744004318729,-500.0,0.00052602,120]
[357310754,1744004318787,-500.0,0.00052602,120]
[357310755,1744004318846,-524.26,0.00052602,120]
[357310756,1744004318902,-2353.85,0.00052602,120]
[357310757,1744004318958,-987.22,0.00052602,120]
[357310758,1744004319012,-323.97736488,0.00052602,120]
[357310759,1744004319067,-500.0,0.00052602,120]
[357310760,1744004319124,-500.0,0.00052602,120]
[357310761,1744004319182,-500.0,0.00052602,120]
[357310762,1744004319242,-500.0,0.00052602,120]
[357310763,1744004319305,-551.53,0.00052602,120]
[357310764,1744004319366,-272.44245376,0.00052602,120]
[357310765,1744004319429,-678.92,0.00052602,120]
[357310766,1744004319490,-500.0,0.00052602,120]
[357310767,1744004319549,-761.56,0.00052602,120]
[357310768,1744004319608,-526.71,0.00052602,30]
[357310769,1744004319667,-500.0,0.00052602,120]
[357310770,1744004319730,-515.69,0.00052602,120]
[357310771,1744004319793,-607.42,0.00052602,120]
[357310772,1744004319850,-1141.72,0.00052602,120]
[357310773,1744004319907,-500.0,0.00052602,120]
[357310774,1744004319961,-836.39,0.00052602,120]
[357310775,1744004320015,-500.0,0.00052602,120]
[357310776,1744004320234,-500.0,0.00052602,120]
[357310777,1744004320299,-500.0,0.00052602,120]
[357310778,1744004320366,-1188.09,0.00052602,120]
[357310779,1744004320431,-500.0,0.00052602,120]
[357310780,1744004320496,-621.66306631,0.00052602,120]
[357310781,1744004320560,-500.0,0.00052602,120]
[357310782,1744004320625,-869.5,0.00052602,120]
[357310783,1744004320697,-500.0,0.00052602,120]
[357310784,1744004320763,-500.0,0.00052602,120]
[357310785,1744004320827,-500.0,0.00052602,120]
[357310786,1744004320888,-319.18,0.00052602,120]
[357310787,1744004320945,-891.76,0.00052602,120]
[357310788,1744004321004,-543.86,0.00052602,120]
[357310789,1744004321064,-1131.81,0.00052602,120]
[357310790,1744004321123,-642.12,0.00052602,120]
[357310791,1744004321181,-801.0,0.00052602,120]
[357310792,1744004321241,-500.0,0.00052602,120]
[357310793,1744004321302,-603.59,0.00052602,120]
[357310794,1744004321363,-1604.32,0.00052602,120]
[357310795,1744004321425,-565.78,0.00052602,120]
[357310796,1744004321486,-695.39,0.00052602,120]
[357310797,1744004321543,-516.92,0.00052602,120]
[357310798,1744004321600,-2327.34,0.00052602,120]
[357310799,1744004321657,-3568.12,0.00052602,120]
[357310800,1744004321714,-500.0,0.00052602,120]
[357310801,1744004321771,-500.0,0.00052602,120]
[357310802,1744004321827,-500.0,0.00052602,120]
[357310803,1744004321881,-500.0,0.00052602,120]
[357310804,1744004321935,-500.0,0.00052602,120]
[357310805,1744004321990,-500.0,0.00052602,120]
[357310806,1744004322045,-536.42,0.00052602,120]
[357310807,1744004322102,-500.0,0.00052602,120]
[357310808,1744004322158,-500.0,0.00052602,120]
[357310809,1744004322217,-500.0,0.00052602,120]
[357310810,1744004322282,-500.0,0.00052602,120]
[357310811,1744004322344,-500.0,0.00052602,120]
[357310812,1744004322406,-613.19483272,0.00052602,120]
[357310813,1744004322467,-500.0,0.00052602,120]
[357310814,1744004322526,-500.0,0.00052602,120]
[357310815,1744004322590,-1483.35,0.00052602,120]
[357310816,1744004322650,-500.0,0.00052602,120]
[357310817,1744004322710,-902.71,0.00052602,120]
[357310818,1744004322770,-500.0,0.00052602,120]
[357310819,1744004322830,-4838.43,0.00052602,120]
[357310820,1744004322893,-521.52,0.00052602,120]
[357310821,1744004322965,-500.0,0.00052602,120]
[357310822,1744004323037,-500.0,0.00052602,120]
[357310823,1744004323108,-334.52291731,0.00052602,120]
[357310824,1744004323181,-500.0,0.00052602,120]
[357310825,1744004323255,-500.0,0.00052602,120]
[357310826,1744004323327,-1085.1,0.00052602,120]
[357310827,1744004323396,-500.0,0.00052602,120]
[357310828,1744004323462,-757.6,0.00052602,120]
[357310829,1744004323526,-435.19975516,0.00052602,120]
[357310830,1744004323588,-500.0,0.00052602,120]
[357310831,1744004323652,-500.0,0.00052602,120]
[357310832,1744004323720,-528.41,0.00052602,120]
[357310833,1744004323786,-23119.87,0.00052602,120]
[357310834,1744004323848,-500.0,0.00052602,120]
[357310835,1744004323911,-576.76,0.00052602,120]
[357310836,1744004323975,-500.0,0.00052602,120]
[357310837,1744004324046,-500.0,0.00052602,120]
[357310838,1744004324117,-500.0,0.00052602,120]
[357310839,1744004324187,-598.2,0.00052602,120]
[357310840,1744004324257,-920.78,0.00052602,120]
[357310841,1744004324325,-500.0,0.00052602,120]
[357310842,1744004324390,-1760.18,0.00052602,120]
[357310843,1744004324454,-500.0,0.00052602,120]
[357310844,1744004324520,-210.0,0.0005264,30]
[357310845,1744004324586,-1057200.3628058,0.000528,120]
[357310846,1744004324648,-581.79080885,0.00052876,30]
[357310847,1744004324711,-1607.14,0.00052876,120]
[357310848,1744004324780,-266.19314235,0.00052876,120]
[357310849,1744004324844,-529.56,0.00052876,120]
[357310850,1744004324904,-627.82212647,0.00052876,120]
[357310851,1744004324961,-1873.68,0.00052876,120]
[357310852,1744004325022,-500.0,0.00052876,120]
[357310853,1744004325082,-500.0,0.00052876,120]
[357310854,1744004325143,-500.0,0.00052876,120]
[357310855,1744004325204,-500.0,0.00052876,120]
[357310856,1744004325267,-500.0,0.00052876,120]
[357310857,1744004325332,-500.0,0.00052876,120]
[357310858,1744004325396,-500.0,0.00052876,120]
[357310859,1744004325456,-1225.53,0.00052876,120]
[357310860,1744004325518,-500.0,0.00052876,120]
[357310861,1744004325581,-362.28971478,0.00052876,120]
[357310862,1744004325646,-500.0,0.00052876,120]
[357310863,1744004325712,-760.28,0.00052876,120]
[357310864,1744004325777,-500.0,0.00052876,120]
[357310865,1744004325838,-500.0,0.00052876,120]
[357310866,1744004325896,-500.0,0.00052876,120]
[357310867,1744004325955,-835.94,0.00052876,120]
[357310868,1744004326014,-468.38414608,0.00052876,120]
[357310869,1744004326075,-500.0,0.00052876,120]
[357310870,1744004326138,-596.65,0.00052876,120]
[357310871,1744004326398,-800.51,0.00052876,120]
[357310872,1744004326464,-646.46,0.00052876,120]
[357310873,1744004326525,-500.0,0.00052876,120]
[357310874,1744004326587,-797.82,0.00052876,120]
[357310875,1744004326649,-698.98,0.00052876,120]
[357310876,1744004326710,-669.44,0.00052876,120]
[357310877,1744004326768,-2707.98,0.00052876,120]
[357310878,1744004326829,-500.0,0.00052876,120]
[357310879,1744004326888,-500.0,0.00052876,120]
[357310880,1744004326949,-500.0,0.00052876,120]
[357310881,1744004327012,-500.0,0.00052876,120]
[357310882,1744004327073,-500.0,0.00052876,120]
[357310883,1744004327137,-524.26,0.00052876,120]
[357310884,1744004327202,-2353.85,0.00052876,120]
[357310885,1744004327268,-987.22,0.00052876,120]
[357310886,1744004327330,-500.0,0.00052876,120]
[357310887,1744004327391,-500.0,0.00052876,120]
[357310888,1744004327455,-500.0,0.00052876,120]
[357310889,1744004327523,-500.0,0.00052876,120]
[357310890,1744004327584,-551.53,0.00052876,120]
[357310891,1744004327648,-678.92,0.00052876,120]
[357310892,1744004327708,-500.0,0.00052876,120]
[357310893,1744004327767,-761.56,0.00052876,120]
[357310894,1744004327834,-526.71,0.00052876,30]
[357310895,1744004327897,-500.0,0.00052876,120]
[357310896,1744004327959,-515.69,0.00052876,120]
[357310897,1744004328025,-607.42,0.00052876,120]
[357310898,1744004328101,-1141.72,0.00052876,120]
[357310899,1744004328175,-500.0,0.00052876,120]
[357310900,1744004328251,-836.39,0.00052876,120]
[357310901,1744004328319,-500.0,0.00052876,120]
[357310902,1744004328384,-500.0,0.00052876,120]
[357310903,1744004328454,-500.0,0.00052876,120]
[357310904,1744004328522,-1188.09,0.00052876,120]
[357310905,1744004328587,-500.0,0.00052876,120]
[357310906,1744004328652,-500.0,0.00052876,120]
[357310907,1744004328717,-869.5,0.00052876,120]
[357310908,1744004328785,-500.0,0.00052876,120]
[357310909,1744004328855,-500.0,0.00052876,120]
[357310910,1744004328921,-500.0,0.00052876,120]
[357310911,1744004328987,-319.18,0.00052876,120]
[357310912,1744004329062,-891.76,0.00052876,120]
[357310913,1744004329130,-543.86,0.00052876,120]
[357310914,1744004329200,-1131.81,0.00052876,120]
[357310915,1744004329271,-642.12,0.00052876,120]
[357310916,1744004329338,-801.0,0.00052876,120]
[357310917,1744004329403,-500.0,0.00052876,120]
[357310918,1744004329464,-603.59,0.00052876,120]
[357310919,1744004329524,-1604.32,0.00052876,120]
[357310920,1744004329582,-565.78,0.00052876,120]
[357310921,1744004329639,-695.39,0.00052876,120]
[357310922,1744004329701,-516.92,0.00052876,120]
[357310923,1744004329765,-2327.34,0.00052876,120]
[357310924,1744004329829,-3568.12,0.00052876,120]
[357310925,1744004329891,-500.0,0.00052876,120]
[357310926,1744004329953,-500.0,0.00052876,120]
[357310927,1744004330016,-500.0,0.00052876,120]
[357310928,1744004330083,-500.0,0.00052876,120]
[357310929,1744004330148,-338.71423103,0.00052876,120]
[357310930,1744004330211,-500.0,0.00052876,120]
[357310931,1744004330275,-536.42,0.00052876,120]
[357310932,1744004330339,-500.0,0.00052876,120]
[357310933,1744004330404,-641.41398433,0.00052876,120]
[357310934,1744004330478,-500.0,0.00052876,120]
[357310935,1744004330550,-408.92878559,0.00052876,120]
[357310936,1744004330619,-500.0,0.00052876,120]
[357310937,1744004330691,-500.0,0.00052876,120]
[357310938,1744004330762,-535.44289936,0.00052876,120]
[357310939,1744004330831,-1483.35,0.00052876,120]
[357310940,1744004330895,-500.0,0.00052876,120]
[357310941,1744004330959,-902.71,0.00052876,120]
[357310942,1744004331024,-500.0,0.00052876,120]
[357310943,1744004331093,-4838.43,0.00052876,120]
[357310944,1744004331159,-521.52,0.00052876,120]
[357310945,1744004331225,-500.0,0.00052876,120]
[357310946,1744004331293,-500.0,0.00052876,120]
[357310947,1744004331359,-500.0,0.00052876,120]
[357310948,1744004331425,-500.0,0.00052876,120]
[357310949,1744004331490,-1085.1,0.00052876,120]
[357310950,1744004331562,-500.0,0.00052876,120]
[357310951,1744004331632,-757.6,0.00052876,120]